[Event "Early-Titled-Tuesday-Blitz-February-20-2024"]
[Site "Chess.com"]
[Date "2024.02.20"]
[Round "8"]
[White "Jojo_898"]
[Black "AlexTruskavetsky"]
[Result "1-0"]
[WhiteElo "2499"]
[BlackElo "2713"]
[TimeControl "180+1"]
[EndTime "9:29:46 PST"]
[Termination "Jojo_898 won by checkmate"]

1. e4 {[%clk 0:03:00.9]} 1... c5 {[%clk 0:02:59.9]} 2. Nf3 {[%clk 0:03:00.9]}
2... Nc6 {[%clk 0:03:00.3]} 3. c3 {[%clk 0:03:00.7]} 3... Nf6 {[%clk 0:03:00.1]}
4. Bd3 {[%clk 0:03:01.1]} 4... d5 {[%clk 0:02:59.5]} 5. e5 {[%clk 0:02:59.8]}
5... Nd7 {[%clk 0:02:59.5]} 6. Qe2 {[%clk 0:02:57.8]} 6... e6 {[%clk 0:02:57.5]}
7. Bc2 {[%clk 0:02:56.5]} 7... d4 {[%clk 0:02:54.8]} 8. d3 {[%clk 0:02:54.1]}
8... Qc7 {[%clk 0:02:55.2]} 9. Bf4 {[%clk 0:02:54.3]} 9... Be7 {[%clk
0:02:54.6]} 10. O-O {[%clk 0:02:54.3]} 10... O-O {[%clk 0:02:55.3]} 11. Nbd2
{[%clk 0:02:51.7]} 11... b6 {[%clk 0:02:55.3]} 12. Rac1 {[%clk 0:02:45.5]} 12...
dxc3 {[%clk 0:02:51.6]} 13. bxc3 {[%clk 0:02:45]} 13... Ba6 {[%clk 0:02:51.9]}
14. Qe3 {[%clk 0:02:38.5]} 14... Rfd8 {[%clk 0:02:50.6]} 15. Rfd1 {[%clk
0:02:38.4]} 15... Nf8 {[%clk 0:02:50.8]} 16. d4 {[%clk 0:02:35.4]} 16... Ng6
{[%clk 0:02:50.7]} 17. Bg3 {[%clk 0:02:30]} 17... cxd4 {[%clk 0:02:48.8]} 18.
cxd4 {[%clk 0:02:29.8]} 18... Rac8 {[%clk 0:02:41.1]} 19. h4 {[%clk 0:02:27.8]}
19... Nb4 {[%clk 0:02:38.9]} 20. Bxg6 {[%clk 0:02:19]} 20... Qxc1 {[%clk
0:02:38.3]} 21. Bxf7+ {[%clk 0:02:18.3]} 21... Kxf7 {[%clk 0:02:38.8]} 22. Rxc1
{[%clk 0:02:18.5]} 22... Rxc1+ {[%clk 0:02:39.7]} 23. Kh2 {[%clk 0:02:19.2]}
23... Nd5 {[%clk 0:02:38.6]} 24. Qe4 {[%clk 0:02:14.9]} 24... g6 {[%clk
0:02:36.4]} 25. Bf4 {[%clk 0:02:01.9]} 25... Nc3 {[%clk 0:02:25.8]} 26. Qe3
{[%clk 0:01:56.2]} 26... Nd5 {[%clk 0:02:26.2]} 27. Qe4 {[%clk 0:01:55.8]} 27...
Rc7 {[%clk 0:02:16.4]} 28. Bg5 {[%clk 0:01:53.5]} 28... Bc8 {[%clk 0:02:13.9]}
29. Bxe7 {[%clk 0:01:53.1]} 29... Nxe7 {[%clk 0:02:14.8]} 30. Ng5+ {[%clk
0:01:53.5]} 30... Kg8 {[%clk 0:02:14.4]} 31. h5 {[%clk 0:01:50.6]} 31... Nf5
{[%clk 0:02:14.5]} 32. Ndf3 {[%clk 0:01:47]} 32... h6 {[%clk 0:02:08.2]} 33. Nh3
{[%clk 0:01:42]} 33... g5 {[%clk 0:02:05.6]} 34. Qg4 {[%clk 0:01:22.8]} 34...
Rg7 {[%clk 0:01:55.6]} 35. Nfxg5 {[%clk 0:01:09.7]} 35... hxg5 {[%clk
0:01:55.2]} 36. Nxg5 {[%clk 0:01:10]} 36... Rxd4 {[%clk 0:01:55.5]} 37. f4
{[%clk 0:01:10.6]} 37... Bb7 {[%clk 0:01:50.7]} 38. h6 {[%clk 0:01:10.9]} 38...
Rg6 {[%clk 0:01:44.9]} 39. h7+ {[%clk 0:01:01.9]} 39... Kg7 {[%clk 0:01:44.5]}
40. Nxe6+ {[%clk 0:01:00.4]} 40... Kxh7 {[%clk 0:01:34]} 41. Qxf5 {[%clk
0:00:57.4]} 41... Rd2 {[%clk 0:01:27.3]} 42. Nf8+ {[%clk 0:00:56.6]} 42... Kg7
{[%clk 0:01:22.1]} 43. Qxg6+ {[%clk 0:00:55.9]} 43... Kxf8 {[%clk 0:01:22.5]}
44. Qf6+ {[%clk 0:00:52]} 44... Ke8 {[%clk 0:01:18.7]} 45. e6 {[%clk 0:00:51.3]}
45... Rxg2+ {[%clk 0:00:50.7]} 46. Kh3 {[%clk 0:00:49.5]} 46... Re2 {[%clk
0:00:48.8]} 47. Qf7+ {[%clk 0:00:47.9]} 47... Kd8 {[%clk 0:00:49.5]} 48. Qd7#
{[%clk 0:00:48.5]} 1-0

[Event "Early-Titled-Tuesday-Blitz-February-20-2024"]
[Site "Chess.com"]
[Date "2024.02.20"]
[Round "8"]
[White "ClaudiaSof"]
[Black "DonMicheleCorleone"]
[Result "1-0"]
[WhiteElo "2339"]
[BlackElo "2514"]
[TimeControl "180+1"]
[EndTime "9:29:46 PST"]
[Termination "ClaudiaSof won by resignation"]

1. e4 {[%clk 0:02:57.5]} 1... e6 {[%clk 0:02:58.8]} 2. d4 {[%clk 0:02:56.6]}
2... d5 {[%clk 0:02:59]} 3. Nd2 {[%clk 0:02:56.5]} 3... dxe4 {[%clk 0:02:59.1]}
4. Nxe4 {[%clk 0:02:55.8]} 4... Nd7 {[%clk 0:02:59.8]} 5. Nf3 {[%clk 0:02:53.4]}
5... Ngf6 {[%clk 0:03:00.1]} 6. Bd3 {[%clk 0:02:50.2]} 6... Nxe4 {[%clk
0:02:58.3]} 7. Bxe4 {[%clk 0:02:50.4]} 7... Nf6 {[%clk 0:02:59]} 8. Bg5 {[%clk
0:02:45.1]} 8... c5 {[%clk 0:02:55.2]} 9. Qe2 {[%clk 0:02:41.7]} 9... cxd4
{[%clk 0:02:54.2]} 10. O-O-O {[%clk 0:02:41.1]} 10... Qa5 {[%clk 0:02:53.4]} 11.
Kb1 {[%clk 0:02:27.3]} 11... Bd7 {[%clk 0:02:24.7]} 12. Bxf6 {[%clk 0:02:19.3]}
12... gxf6 {[%clk 0:02:23.3]} 13. Nxd4 {[%clk 0:02:14.8]} 13... O-O-O {[%clk
0:02:20.4]} 14. Qf3 {[%clk 0:02:12.4]} 14... Qb6 {[%clk 0:02:14.3]} 15. Qxf6
{[%clk 0:02:09.9]} 15... Rg8 {[%clk 0:02:13.3]} 16. Qxf7 {[%clk 0:02:02]} 16...
Bg7 {[%clk 0:02:12.5]} 17. c3 {[%clk 0:01:59.7]} 17... Rdf8 {[%clk 0:02:06.9]}
18. Qe7 {[%clk 0:01:41.6]} 18... Rxf2 {[%clk 0:01:58.7]} 19. Nb3 {[%clk
0:01:40.4]} 19... Qc7 {[%clk 0:01:50]} 20. Rxd7 {[%clk 0:01:26.7]} 20... Rxb2+
{[%clk 0:01:05.9]} 21. Kxb2 {[%clk 0:01:01.8]} 21... Qxc3+ {[%clk 0:01:05.8]}
22. Ka3 {[%clk 0:01:01.3]} 22... Qb2+ {[%clk 0:01:05.5]} 23. Kb4 {[%clk
0:00:59.2]} 23... Qc3+ {[%clk 0:01:03.8]} 24. Kb5 {[%clk 0:00:48.8]} 24... Qe5+
{[%clk 0:00:42.1]} 25. Bd5 {[%clk 0:00:40.4]} 25... a6+ {[%clk 0:00:30]} 26. Kb6
{[%clk 0:00:37.3]} 26... Qe3+ {[%clk 0:00:19.7]} 27. Qc5+ {[%clk 0:00:36.4]}
27... Qxc5+ {[%clk 0:00:18.4]} 28. Nxc5 {[%clk 0:00:36.3]} 28... exd5 {[%clk
0:00:18.2]} 29. Rc7+ {[%clk 0:00:35.9]} 29... Kb8 {[%clk 0:00:17.7]} 30. Rxb7+
{[%clk 0:00:35.8]} 30... Ka8 {[%clk 0:00:18.3]} 31. Ra7+ {[%clk 0:00:35.1]}
31... Kb8 {[%clk 0:00:18.7]} 32. Nd7+ {[%clk 0:00:34.7]} 32... Kc8 {[%clk
0:00:19.2]} 33. Ra8+ {[%clk 0:00:34.9]} 1-0

[Event "Early-Titled-Tuesday-Blitz-February-20-2024"]
[Site "Chess.com"]
[Date "2024.02.20"]
[Round "8"]
[White "emeli_chess"]
[Black "NM_Antelacus"]
[Result "1/2-1/2"]
[WhiteElo "2412"]
[BlackElo "2257"]
[TimeControl "180+1"]
[EndTime "9:29:48 PST"]
[Termination "Game drawn by repetition"]

1. d4 {[%clk 0:03:00.9]} 1... Nf6 {[%clk 0:02:59.5]} 2. c4 {[%clk 0:02:59.2]}
2... e6 {[%clk 0:02:59.6]} 3. Nc3 {[%clk 0:02:58.9]} 3... Bb4 {[%clk 0:02:59.3]}
4. Qc2 {[%clk 0:02:59]} 4... O-O {[%clk 0:02:57.9]} 5. e4 {[%clk 0:02:58.3]}
5... d5 {[%clk 0:02:57]} 6. e5 {[%clk 0:02:58.1]} 6... Ne4 {[%clk 0:02:57.2]} 7.
Bd3 {[%clk 0:02:58.4]} 7... c5 {[%clk 0:02:56.5]} 8. Nf3 {[%clk 0:02:58.3]} 8...
Nc6 {[%clk 0:02:50.6]} 9. O-O {[%clk 0:02:56.9]} 9... Bxc3 {[%clk 0:02:48.3]}
10. bxc3 {[%clk 0:02:56.5]} 10... f5 {[%clk 0:02:40]} 11. exf6 {[%clk 0:02:56]}
11... Nxf6 {[%clk 0:02:39.3]} 12. Bg5 {[%clk 0:02:51.3]} 12... h6 {[%clk
0:02:36.3]} 13. Bh4 {[%clk 0:02:46.1]} 13... b6 {[%clk 0:02:21]} 14. cxd5 {[%clk
0:02:33.6]} 14... exd5 {[%clk 0:02:19.1]} 15. Bh7+ {[%clk 0:02:27.7]} 15... Kh8
{[%clk 0:02:16]} 16. Ne5 {[%clk 0:02:11]} 16... Nxe5 {[%clk 0:02:05.8]} 17. dxe5
{[%clk 0:02:10.6]} 17... g5 {[%clk 0:02:01.2]} 18. exf6 {[%clk 0:02:02.1]} 18...
gxh4 {[%clk 0:02:00.2]} 19. Bf5 {[%clk 0:01:48.2]} 19... Qxf6 {[%clk 0:01:55.3]}
20. Bxc8 {[%clk 0:01:47]} 20... Raxc8 {[%clk 0:01:54.4]} 21. h3 {[%clk
0:01:44.1]} 21... d4 {[%clk 0:01:51.7]} 22. cxd4 {[%clk 0:01:41.7]} 22... cxd4
{[%clk 0:01:51.2]} 23. Qe4 {[%clk 0:01:36.9]} 23... Rcd8 {[%clk 0:01:48.5]} 24.
Rad1 {[%clk 0:01:35.7]} 24... b5 {[%clk 0:01:42.5]} 25. Rd3 {[%clk 0:01:35]}
25... Qf4 {[%clk 0:01:35]} 26. Qc6 {[%clk 0:01:23.5]} 26... b4 {[%clk
0:01:31.7]} 27. Qb7 {[%clk 0:00:48]} 27... a5 {[%clk 0:01:24.8]} 28. Qa7 {[%clk
0:00:42.2]} 28... Qe5 {[%clk 0:01:18.1]} 29. Qb6 {[%clk 0:00:38.7]} 29... Kg7
{[%clk 0:01:14.4]} 30. Rfd1 {[%clk 0:00:36.8]} 30... Rd6 {[%clk 0:01:11.2]} 31.
Qb7+ {[%clk 0:00:31.1]} 31... Rf7 {[%clk 0:01:09.8]} 32. Qa8 {[%clk 0:00:28.9]}
32... Qf5 {[%clk 0:01:00.7]} 33. Rf3 {[%clk 0:00:27.2]} 33... Qd5 {[%clk
0:00:59.3]} 34. Rxf7+ {[%clk 0:00:24.4]} 34... Kxf7 {[%clk 0:00:56.6]} 35. Qh8
{[%clk 0:00:22.5]} 35... d3 {[%clk 0:00:52.2]} 36. Qh7+ {[%clk 0:00:21.6]} 36...
Kf8 {[%clk 0:00:50.1]} 37. Qh8+ {[%clk 0:00:15.5]} 37... Kf7 {[%clk 0:00:50.2]}
38. Qh7+ {[%clk 0:00:15.4]} 38... Kf8 {[%clk 0:00:50.6]} 39. Qh8+ {[%clk
0:00:15.6]} 39... Kf7 {[%clk 0:00:50.9]} 1/2-1/2

[Event "Early-Titled-Tuesday-Blitz-February-20-2024"]
[Site "Chess.com"]
[Date "2024.02.20"]
[Round "8"]
[White "FaustinoOro"]
[Black "Karttunen"]
[Result "1-0"]
[WhiteElo "2897"]
[BlackElo "2677"]
[TimeControl "180+1"]
[EndTime "9:29:52 PST"]
[Termination "FaustinoOro won by resignation"]

1. Nf3 {[%clk 0:03:00.9]} 1... Nf6 {[%clk 0:02:59.2]} 2. g3 {[%clk 0:02:59.5]}
2... d5 {[%clk 0:02:58.7]} 3. Bg2 {[%clk 0:02:59.3]} 3... c5 {[%clk 0:02:58.9]}
4. O-O {[%clk 0:02:57.3]} 4... Nc6 {[%clk 0:02:56.9]} 5. d4 {[%clk 0:02:55.3]}
5... cxd4 {[%clk 0:02:48.5]} 6. Nxd4 {[%clk 0:02:56.2]} 6... e5 {[%clk
0:02:47.3]} 7. Nxc6 {[%clk 0:02:55.2]} 7... bxc6 {[%clk 0:02:48.2]} 8. c4 {[%clk
0:02:55.6]} 8... Be6 {[%clk 0:02:45.4]} 9. Nc3 {[%clk 0:02:49.8]} 9... h6 {[%clk
0:02:29]} 10. cxd5 {[%clk 0:02:44.2]} 10... cxd5 {[%clk 0:02:28.9]} 11. Qa4+
{[%clk 0:02:33.5]} 11... Qd7 {[%clk 0:02:28.9]} 12. Qxd7+ {[%clk 0:02:09.1]}
12... Kxd7 {[%clk 0:02:13.1]} 13. Rd1 {[%clk 0:02:09.2]} 13... Bd6 {[%clk
0:02:05.5]} 14. Nxd5 {[%clk 0:02:06.4]} 14... Nxd5 {[%clk 0:02:03.8]} 15. Bxd5
{[%clk 0:02:06.1]} 15... Bxd5 {[%clk 0:02:04]} 16. Rxd5 {[%clk 0:02:06.2]} 16...
Ke6 {[%clk 0:02:02.7]} 17. Rd1 {[%clk 0:02:05.6]} 17... Rhc8 {[%clk 0:01:50.4]}
18. Be3 {[%clk 0:02:04.6]} 18... Rc2 {[%clk 0:01:50]} 19. Rac1 {[%clk
0:01:56.4]} 19... Rac8 {[%clk 0:01:50]} 20. Rxc2 {[%clk 0:01:55.6]} 20... Rxc2
{[%clk 0:01:50.9]} 21. Rd2 {[%clk 0:01:55.9]} 21... Rc7 {[%clk 0:01:45.5]} 22.
f3 {[%clk 0:01:49.4]} 22... f5 {[%clk 0:01:44.2]} 23. Kf2 {[%clk 0:01:48.6]}
23... g5 {[%clk 0:01:42.1]} 24. f4 {[%clk 0:01:13]} 24... gxf4 {[%clk
0:01:06.6]} 25. gxf4 {[%clk 0:01:11.8]} 25... e4 {[%clk 0:01:07.1]} 26. Rd4
{[%clk 0:00:58.4]} 26... Rc2 {[%clk 0:01:02.5]} 27. Ra4 {[%clk 0:00:58.8]} 27...
Rxb2 {[%clk 0:00:58.5]} 28. Rxa7 {[%clk 0:00:57.5]} 28... Kd5 {[%clk 0:00:49.5]}
29. Ra5+ {[%clk 0:00:56.8]} 29... Ke6 {[%clk 0:00:48.9]} 30. a4 {[%clk
0:00:56.1]} 30... Ra2 {[%clk 0:00:48.2]} 31. Ra6 {[%clk 0:00:53.5]} 31... Kd5
{[%clk 0:00:47.9]} 32. a5 {[%clk 0:00:42.6]} 32... h5 {[%clk 0:00:46.9]} 33. Ra8
{[%clk 0:00:40.2]} 33... h4 {[%clk 0:00:45.3]} 34. a6 {[%clk 0:00:39.4]} 34...
Bc5 {[%clk 0:00:22.3]} 35. Rd8+ {[%clk 0:00:36.7]} 35... Bd6 {[%clk 0:00:21.1]}
36. a7 {[%clk 0:00:35.2]} 1-0

[Event "Early-Titled-Tuesday-Blitz-February-20-2024"]
[Site "Chess.com"]
[Date "2024.02.20"]
[Round "8"]
[White "mbojan"]
[Black "OparinGrigoriy"]
[Result "1-0"]
[WhiteElo "2880"]
[BlackElo "2995"]
[TimeControl "180+1"]
[EndTime "9:29:54 PST"]
[Termination "mbojan won by resignation"]

1. e4 {[%clk 0:03:00.9]} 1... c6 {[%clk 0:03:00.3]} 2. d4 {[%clk 0:02:59.4]}
2... d5 {[%clk 0:03:01.2]} 3. Nc3 {[%clk 0:02:59.4]} 3... dxe4 {[%clk
0:03:01.4]} 4. Nxe4 {[%clk 0:02:59.7]} 4... Nf6 {[%clk 0:03:02.1]} 5. Nxf6+
{[%clk 0:03:00]} 5... exf6 {[%clk 0:03:03]} 6. c3 {[%clk 0:03:00.2]} 6... Bd6
{[%clk 0:03:03.2]} 7. Bd3 {[%clk 0:03:00.6]} 7... O-O {[%clk 0:03:03.6]} 8. Qc2
{[%clk 0:03:01.2]} 8... Re8+ {[%clk 0:03:04.5]} 9. Ne2 {[%clk 0:03:01.5]} 9...
h5 {[%clk 0:03:05.1]} 10. h3 {[%clk 0:03:02]} 10... Nd7 {[%clk 0:03:04]} 11. O-O
{[%clk 0:03:01.2]} 11... h4 {[%clk 0:02:59.6]} 12. Bd2 {[%clk 0:03:01.2]} 12...
Nf8 {[%clk 0:03:00]} 13. Rae1 {[%clk 0:03:01.7]} 13... Be6 {[%clk 0:02:56.9]}
14. f4 {[%clk 0:03:00.9]} 14... Rc8 {[%clk 0:02:53.8]} 15. f5 {[%clk 0:02:56.1]}
15... Bd7 {[%clk 0:02:48.6]} 16. c4 {[%clk 0:02:56.3]} 16... Nh7 {[%clk
0:02:46.1]} 17. Qd1 {[%clk 0:02:56.1]} 17... Ng5 {[%clk 0:02:40.1]} 18. Nc3
{[%clk 0:02:46.7]} 18... Bg3 {[%clk 0:02:30.9]} 19. Rxe8+ {[%clk 0:02:38.7]}
19... Bxe8 {[%clk 0:02:31.8]} 20. Qg4 {[%clk 0:02:38]} 20... Qb6 {[%clk
0:02:30.2]} 21. b3 {[%clk 0:02:28.8]} 21... Rd8 {[%clk 0:02:28.8]} 22. Ne2
{[%clk 0:02:26.4]} 22... Qc7 {[%clk 0:02:15.5]} 23. Bxg5 {[%clk 0:02:04.1]}
23... fxg5 {[%clk 0:02:15.5]} 24. f6 {[%clk 0:02:05]} 24... g6 {[%clk
0:00:55.6]} 25. Qxg5 {[%clk 0:02:04.2]} 25... Qd6 {[%clk 0:00:56.4]} 26. c5
{[%clk 0:01:41]} 26... Qf8 {[%clk 0:00:51.9]} 27. Bc4 {[%clk 0:01:32.8]} 27...
Rd5 {[%clk 0:00:19]} 28. Bxd5 {[%clk 0:01:31.8]} 28... cxd5 {[%clk 0:00:19.9]}
29. Nxg3 {[%clk 0:01:32.5]} 29... hxg3 {[%clk 0:00:20.7]} 30. Qxg3 {[%clk
0:01:32.9]} 30... Bb5 {[%clk 0:00:19.1]} 31. Re1 {[%clk 0:01:30.7]} 31... Qh6
{[%clk 0:00:19.3]} 32. Qe3 {[%clk 0:01:19.4]} 32... Qh4 {[%clk 0:00:17.8]} 33.
Qe5 {[%clk 0:01:18.4]} 33... Kh7 {[%clk 0:00:14]} 34. Re3 {[%clk 0:01:16.8]}
34... Qh6 {[%clk 0:00:10.3]} 35. Kh2 {[%clk 0:01:16]} 35... Bd7 {[%clk
0:00:09.5]} 36. Rf3 {[%clk 0:01:07.1]} 36... Be6 {[%clk 0:00:09.7]} 37. Qf4
{[%clk 0:01:01.1]} 37... Qh5 {[%clk 0:00:09.8]} 38. Re3 {[%clk 0:01:00.8]} 38...
Kg8 {[%clk 0:00:08.7]} 39. Qb8+ {[%clk 0:00:59.7]} 39... Kh7 {[%clk 0:00:08.8]}
40. Rxe6 {[%clk 0:00:55.9]} 40... fxe6 {[%clk 0:00:09.7]} 41. f7 {[%clk
0:00:50.4]} 1-0

[Event "Early-Titled-Tuesday-Blitz-February-20-2024"]
[Site "Chess.com"]
[Date "2024.02.20"]
[Round "8"]
[White "NovoselovRoman"]
[Black "Nikolakis2014"]
[Result "0-1"]
[WhiteElo "2546"]
[BlackElo "2743"]
[TimeControl "180+1"]
[EndTime "9:29:54 PST"]
[Termination "Nikolakis2014 won by resignation"]

1. d4 {[%clk 0:03:00.9]} 1... Nf6 {[%clk 0:02:59.1]} 2. Nc3 {[%clk 0:02:59.8]}
2... d5 {[%clk 0:02:57.5]} 3. Bg5 {[%clk 0:03:00.5]} 3... Nbd7 {[%clk
0:02:55.9]} 4. Nf3 {[%clk 0:03:00.4]} 4... c6 {[%clk 0:02:54.6]} 5. e3 {[%clk
0:03:00.2]} 5... e6 {[%clk 0:02:53.9]} 6. Bd3 {[%clk 0:03:00.6]} 6... h6 {[%clk
0:02:50.8]} 7. Bh4 {[%clk 0:03:00.6]} 7... Be7 {[%clk 0:02:42.8]} 8. O-O {[%clk
0:02:59.5]} 8... c5 {[%clk 0:02:41.5]} 9. Ne5 {[%clk 0:02:36.5]} 9... O-O {[%clk
0:02:39.7]} 10. Nxd7 {[%clk 0:02:27.1]} 10... Bxd7 {[%clk 0:02:35.8]} 11. dxc5
{[%clk 0:02:25.8]} 11... Bxc5 {[%clk 0:02:27.7]} 12. e4 {[%clk 0:02:25]} 12...
Be7 {[%clk 0:02:27.2]} 13. Bxf6 {[%clk 0:02:12.2]} 13... Bxf6 {[%clk 0:02:26.5]}
14. exd5 {[%clk 0:02:12.8]} 14... Bxc3 {[%clk 0:02:23.1]} 15. bxc3 {[%clk
0:02:03.8]} 15... exd5 {[%clk 0:02:22.7]} 16. Qh5 {[%clk 0:02:04.4]} 16... Be6
{[%clk 0:02:20]} 17. Rab1 {[%clk 0:02:03.3]} 17... b6 {[%clk 0:02:19.5]} 18. Rb4
{[%clk 0:02:03.3]} 18... Rc8 {[%clk 0:02:19.2]} 19. Qf3 {[%clk 0:01:31.1]} 19...
Qc7 {[%clk 0:02:13.2]} 20. g4 {[%clk 0:01:24.7]} 20... Qxc3 {[%clk 0:02:10]} 21.
Rf4 {[%clk 0:01:23.8]} 21... Qe5 {[%clk 0:02:06.1]} 22. h4 {[%clk 0:01:16.5]}
22... Rc3 {[%clk 0:02:01.4]} 23. a4 {[%clk 0:00:58.8]} 23... Rfc8 {[%clk
0:01:52.7]} 24. a5 {[%clk 0:00:38.4]} 24... bxa5 {[%clk 0:01:38.1]} 25. Ra4
{[%clk 0:00:38.4]} 25... g6 {[%clk 0:01:18.2]} 26. Rxa5 {[%clk 0:00:33.9]} 26...
R8c4 {[%clk 0:01:16.6]} 27. Rfa1 {[%clk 0:00:12.7]} 27... Rxg4+ {[%clk
0:01:15.1]} 28. Kf1 {[%clk 0:00:13.3]} 28... Rxh4 {[%clk 0:01:08.2]} 29. Rxa7
{[%clk 0:00:13.1]} 29... Bh3+ {[%clk 0:01:07]} 30. Kg1 {[%clk 0:00:13.2]} 30...
Rg4+ {[%clk 0:01:07]} 31. Kh1 {[%clk 0:00:10.8]} 31... Bg2+ {[%clk 0:01:05.1]}
32. Qxg2 {[%clk 0:00:11.5]} 32... Rxg2 {[%clk 0:01:05.3]} 33. Kxg2 {[%clk
0:00:12.4]} 33... Rc7 {[%clk 0:01:03.8]} 34. Ra8+ {[%clk 0:00:12.3]} 34... Kg7
{[%clk 0:01:04]} 35. R1a5 {[%clk 0:00:12.6]} 35... Qg5+ {[%clk 0:01:04]} 36. Kf1
{[%clk 0:00:12.5]} 36... h5 {[%clk 0:01:03.5]} 37. R8a6 {[%clk 0:00:10]} 37...
h4 {[%clk 0:01:02.8]} 38. Rd6 {[%clk 0:00:10.7]} 38... h3 {[%clk 0:01:00.7]} 39.
Rdxd5 {[%clk 0:00:11.1]} 39... Qg2+ {[%clk 0:01:00.7]} 40. Ke2 {[%clk
0:00:11.3]} 40... Re7+ {[%clk 0:00:58.8]} 41. Kd2 {[%clk 0:00:11.4]} 41... Qxf2+
{[%clk 0:00:57.8]} 42. Kc3 {[%clk 0:00:11.8]} 42... h2 {[%clk 0:00:57.9]} 0-1

[Event "Early-Titled-Tuesday-Blitz-February-20-2024"]
[Site "Chess.com"]
[Date "2024.02.20"]
[Round "8"]
[White "falzehope0"]
[Black "JoliyRoger"]
[Result "1-0"]
[WhiteElo "2414"]
[BlackElo "2510"]
[TimeControl "180+1"]
[EndTime "9:29:55 PST"]
[Termination "falzehope0 won on time"]

1. d4 {[%clk 0:02:32.6]} 1... Nf6 {[%clk 0:02:59.3]} 2. e3 {[%clk 0:02:32.6]}
2... e6 {[%clk 0:02:58.5]} 3. Bd3 {[%clk 0:02:32.9]} 3... b6 {[%clk 0:02:56.6]}
4. f4 {[%clk 0:02:33]} 4... Bb7 {[%clk 0:02:57]} 5. Nf3 {[%clk 0:02:33.6]} 5...
Be4 {[%clk 0:02:39.5]} 6. O-O {[%clk 0:02:32.8]} 6... d5 {[%clk 0:02:31.9]} 7.
b3 {[%clk 0:02:28.7]} 7... Bd6 {[%clk 0:02:25.7]} 8. Nbd2 {[%clk 0:02:17.5]}
8... O-O {[%clk 0:02:15.8]} 9. Bb2 {[%clk 0:02:11.9]} 9... Nbd7 {[%clk
0:02:10.8]} 10. Ne5 {[%clk 0:02:09.3]} 10... c5 {[%clk 0:02:05.5]} 11. dxc5
{[%clk 0:01:59.1]} 11... Nxc5 {[%clk 0:02:04]} 12. Nc6 {[%clk 0:01:36.6]} 12...
Qe8 {[%clk 0:01:39.6]} 13. Bxf6 {[%clk 0:01:30.6]} 13... Qxc6 {[%clk 0:01:29.4]}
14. Bxe4 {[%clk 0:01:22.7]} 14... dxe4 {[%clk 0:00:54.4]} 15. Qg4 {[%clk
0:01:14.7]} 15... g6 {[%clk 0:00:53.9]} 16. Qg5 {[%clk 0:01:03.9]} 16... Rfe8
{[%clk 0:00:40.8]} 17. Nc4 {[%clk 0:00:49.9]} 17... Bf8 {[%clk 0:00:34.8]} 18.
Rad1 {[%clk 0:00:45.3]} 18... h6 {[%clk 0:00:27.1]} 19. Qh4 {[%clk 0:00:43.4]}
19... Nd7 {[%clk 0:00:24.3]} 20. Bb2 {[%clk 0:00:39.3]} 20... f5 {[%clk
0:00:20.7]} 21. Qg3 {[%clk 0:00:35]} 21... Kh7 {[%clk 0:00:17.8]} 22. Rd2 {[%clk
0:00:25.9]} 22... b5 {[%clk 0:00:13.9]} 23. Rfd1 {[%clk 0:00:24.7]} 23... Nf6
{[%clk 0:00:13]} 24. Ne5 {[%clk 0:00:24.7]} 24... Qa6 {[%clk 0:00:07.6]} 25.
Qxg6+ {[%clk 0:00:23.8]} 1-0

[Event "Early-Titled-Tuesday-Blitz-February-20-2024"]
[Site "Chess.com"]
[Date "2024.02.20"]
[Round "8"]
[White "GM_Huschenbeth"]
[Black "only_strong_moves"]
[Result "1-0"]
[WhiteElo "2511"]
[BlackElo "2629"]
[TimeControl "180+1"]
[EndTime "9:29:56 PST"]
[Termination "GM_Huschenbeth won by checkmate"]

1. e4 {[%clk 0:02:57.3]} 1... e5 {[%clk 0:03:00]} 2. Nf3 {[%clk 0:02:56.6]} 2...
Nc6 {[%clk 0:03:00.7]} 3. Bc4 {[%clk 0:02:56.5]} 3... Nf6 {[%clk 0:02:59.9]} 4.
d3 {[%clk 0:02:56.8]} 4... Be7 {[%clk 0:02:59.5]} 5. a4 {[%clk 0:02:55.7]} 5...
O-O {[%clk 0:02:59.7]} 6. a5 {[%clk 0:02:56]} 6... d5 {[%clk 0:02:58.9]} 7. exd5
{[%clk 0:02:55.6]} 7... Nxd5 {[%clk 0:02:59.8]} 8. h3 {[%clk 0:02:55.7]} 8...
Bf5 {[%clk 0:02:53.7]} 9. O-O {[%clk 0:02:55.3]} 9... Nf6 {[%clk 0:02:37.4]} 10.
Nc3 {[%clk 0:02:24.6]} 10... e4 {[%clk 0:02:27.4]} 11. dxe4 {[%clk 0:02:25.5]}
11... Nxe4 {[%clk 0:02:27.8]} 12. Nd5 {[%clk 0:02:18.5]} 12... Bc5 {[%clk
0:02:22]} 13. Be3 {[%clk 0:02:11.6]} 13... Qd6 {[%clk 0:02:10.2]} 14. Bf4 {[%clk
0:02:00.3]} 14... Bxf2+ {[%clk 0:01:57.1]} 15. Rxf2 {[%clk 0:01:39.4]} 15... Qc5
{[%clk 0:01:56.8]} 16. Ne3 {[%clk 0:01:28.5]} 16... Nxf2 {[%clk 0:01:54.9]} 17.
Kxf2 {[%clk 0:01:29.4]} 17... Rad8 {[%clk 0:01:48]} 18. Qe1 {[%clk 0:01:21]}
18... Rfe8 {[%clk 0:01:46.4]} 19. Qc3 {[%clk 0:01:20.5]} 19... b6 {[%clk
0:01:21.4]} 20. axb6 {[%clk 0:01:09.9]} 20... axb6 {[%clk 0:01:22.3]} 21. Bb3
{[%clk 0:00:35.4]} 21... Qxc3 {[%clk 0:01:07.6]} 22. bxc3 {[%clk 0:00:36.3]}
22... Be4 {[%clk 0:01:08]} 23. Ng5 {[%clk 0:00:34.7]} 23... Bg6 {[%clk
0:00:19.4]} 24. Ba4 {[%clk 0:00:34.7]} 24... Rd2+ {[%clk 0:00:20]} 25. Ke1
{[%clk 0:00:26]} 25... Rxe3+ {[%clk 0:00:07.9]} 26. Bxe3 {[%clk 0:00:25.7]}
26... Rd6 {[%clk 0:00:05.6]} 27. Bxc6 {[%clk 0:00:25.9]} 27... Rxc6 {[%clk
0:00:03.9]} 28. Ra8# {[%clk 0:00:25.1]} 1-0